bitfinex-derivatives/quotes_ETHF0:USTF0_20250828
["timestamp","ask_amount","ask_price","bid_price","bid_amount"]
[1756409761455,1.50894645,4474.0,4473.5,0.40233]
[1756409761456,0.40232,4473.6,4473.5,0.40233]
[1756409761757,0.91892,4473.6,4473.5,0.229]
[1756409761958,0.91892,4473.6,4473.5,0.1921]
[1756409762160,0.91892,4473.6,4473.5,0.4211]
[1756409762355,0.199,4473.2,4473.1,3.2078]
[1756409762560,0.5166,4473.2,4473.1,3.749]
[1756409762860,0.40235,4473.3,4473.2,0.3122]
[1756409763159,0.5166,4473.3,4473.2,0.3122]
[1756409763358,0.40233,4473.5,4473.4,0.59443]
[1756409763659,0.91893,4473.5,4473.4,0.94353]
[1756409764555,0.91893,4473.5,4473.4,0.5412]
[1756409765152,0.5166,4473.5,4473.4,0.5412]
[1756409765352,0.199,4473.5,4473.4,0.4211]
[1756409765859,0.5166,4473.5,4473.4,0.5305]
[1756409766755,0.5992,4473.8,4473.7,0.1744]
[1756409766956,0.5992,4473.8,4473.7,0.2834]
[1756409767259,0.8905,4473.8,4473.7,0.229]
[1756409767659,0.59925,4473.3,4473.2,0.40236]
[1756409767863,0.4882,4473.3,4473.2,0.63136]
[1756409768063,0.4882,4473.3,4473.2,0.80576]
[1756409768254,0.4882,4473.3,4473.2,0.91476]
[1756409768457,0.4882,4473.3,4473.2,0.80576]
[1756409769261,0.4882,4473.3,4473.2,0.91476]
[1756409769956,0.1969,4473.8,4473.7,0.40231]
[1756409770152,0.4882,4473.8,4473.7,0.57671]
[1756409771957,0.4882,4473.8,4473.5,0.229]
[1756409771958,0.4882,4474.3,4474.2,0.1744]
[1756409772159,3.2078,4474.9,4474.8,0.1744]
[1756409772360,3.2078,4474.9,4474.8,0.91461]
[1756409772559,0.4882,4475.9,4475.8,0.1744]
[1756409772861,3.2078,4476.1,4476.0,0.2834]
[1756409772862,3.696,4476.1,4476.0,0.2834]
[1756409773057,3.696,4476.1,4475.9,0.40211]
[1756409773058,0.4882,4475.4,4475.3,0.229]
[1756409773454,4.4882,4475.4,4475.3,0.229]
[1756409773661,0.4882,4474.9,4474.8,0.229]
[1756409773859,0.8904,4474.9,4474.8,0.229]
[1756409774464,4.0982,4474.9,4474.8,0.229]
[1756409774859,0.1969,4474.4,4474.3,0.40225]
[1756409775063,0.69356,4474.3,4474.2,32.196]
[1756409775266,0.69356,4474.3,4474.2,32.425]
[1756409775466,0.69356,4474.3,4474.2,32.196]
[1756409775667,0.69356,4474.3,4474.2,32.425]
[1756409776368,0.89046,4474.3,4474.2,0.229]
[1756409781075,0.4882,4473.5,4473.4,3.4912]
[1756409781274,0.4882,4473.5,4473.4,3.7202]
[1756409781870,0.40231,4473.7,4473.5,0.40233]
[1756409782072,0.89051,4473.7,4473.6,0.1744]
[1756409782465,0.2913,4473.0,4472.9,3.3822]
[1756409782666,0.4882,4473.4,4473.3,0.68574]
[1756409782867,0.4882,4473.4,4473.3,0.5124]
[1756409786176,0.4882,4473.4,4473.3,0.229]
[1756409786480,0.89055,4473.3,4473.2,0.229]
[1756409787380,0.59927,4473.0,4472.9,3.2078]
[1756409787575,0.4882,4472.7,4472.6,3.89361]
[1756409787877,0.40238,4473.0,4472.8,0.40238]
[1756409788070,0.59928,4473.0,4472.9,0.5124]
[1756409788476,0.89058,4473.0,4472.9,0.5124]
[1756409789481,0.89058,4473.0,4472.9,0.91478]
[1756409789878,0.4882,4473.0,4472.9,0.91478]
[1756409790078,3.2078,4473.7,4472.9,0.91478]
[1756409790079,0.4882,4473.3,4473.2,0.1744]
[1756409790281,0.89055,4473.3,4473.2,0.5124]
[1756409790480,0.89055,4473.3,4473.2,0.229]
[1756409792086,0.1969,4473.1,4473.0,0.63137]
[1756409792285,0.4882,4473.6,4473.5,0.2834]
[1756409792482,0.4882,4473.6,4473.5,0.4034]
[1756409792685,0.4882,4473.6,4473.5,0.229]
[1756409792882,0.89052,4473.6,4473.5,0.229]
[1756409793483,3.2078,4473.7,4473.1,0.109]
[1756409793484,0.89056,4473.2,4473.1,0.109]
[1756409793683,0.89056,4473.2,4473.1,0.63137]
[1756409794585,0.4882,4473.2,4473.1,0.63137]
[1756409795491,0.89056,4473.2,4473.1,0.229]
[1756409796185,0.4882,4473.2,4472.7,0.109]
[1756409796392,1.00584,4473.5,4472.6,3.61021]
[1756409796393,0.2942,4472.7,4472.6,3.61021]
[1756409796694,0.4895,4472.7,4472.6,4.10861]
[1756409796994,0.69657,4473.1,4473.0,0.2694]
[1756409797293,0.89187,4473.1,4473.0,0.4984]
[1756409797990,0.4895,4473.1,4473.0,0.90077]
[1756409798586,0.89187,4473.1,4473.0,0.90077]
[1756409798788,0.89187,4473.1,4473.0,0.4984]
[1756409800988,0.89187,4473.1,4473.0,0.3948]
[1756409801992,0.89187,4473.1,4473.0,0.79717]
[1756409802393,0.89187,4473.1,4473.0,0.3948]
[1756409802590,0.8919,4472.7,4472.6,3.2078]
[1756409802787,0.8919,4472.7,4472.6,3.4368]
[1756409803183,0.8919,4472.7,4472.6,3.6026]
[1756409803388,0.8919,4472.7,4472.6,3.7062]
[1756409803687,0.4895,4472.7,4472.6,4.10861]
[1756409803890,0.40238,4472.9,4472.8,0.40239]
[1756409804089,0.89188,4472.9,4472.8,0.67179]
[1756409805697,0.89188,4472.9,4472.8,0.2694]
[1756409805890,0.89188,4472.9,4472.8,0.1658]
[1756409806293,0.4895,4472.9,4472.8,0.67179]
[1756409806597,0.89188,4472.9,4472.8,0.67179]
[1756409806992,0.4024,4472.7,4472.6,3.3736]
[1756409807189,0.2942,4472.6,4472.5,32.194]
[1756409807396,0.69661,4472.6,4472.5,32.423]
[1756409808493,0.69661,4472.6,4472.5,32.194]
[1756409808798,0.69661,4472.6,4472.5,32.423]
[1756409810098,0.40245,4472.2,4472.1,0.40245]
[1756409810291,0.89195,4472.2,4472.1,0.63145]
[1756409810494,0.4895,4472.2,4472.1,0.63145]
[1756409810695,0.89195,4472.2,4472.1,0.63145]
[1756409811097,0.89195,4472.1,4472.0,3.61026]
[1756409811303,0.5978,4471.6,4471.5,0.2694]
[1756409811600,0.4895,4471.3,4471.2,0.1658]
[1756409811800,0.4895,4471.3,4471.2,0.3948]
[1756409811997,0.4895,4471.3,4471.2,0.4984]
[1756409812301,0.4895,4471.3,4471.2,0.3948]
[1756409812495,0.4895,4471.3,4471.2,0.4984]
[1756409813998,0.4895,4471.3,4471.2,0.3948]
[1756409814198,0.4895,4471.3,4471.2,0.4984]
[1756409814404,0.2942,4471.3,4471.2,0.4984]
[1756409814600,0.2942,4471.6,4471.3,0.1036]
[1756409814805,0.892,4471.6,4471.5,0.56831]
[1756409815603,0.892,4471.6,4471.5,0.67191]
[1756409816204,0.5978,4471.6,4471.4,0.63152]
[1756409816404,0.4895,4471.5,4471.4,0.63152]
[1756409817106,0.4895,4471.5,4471.4,0.79732]
[1756409817309,0.89201,4471.5,4471.4,0.3948]
[1756409817606,0.89201,4471.5,4471.4,0.229]
[1756409817805,0.4895,4471.2,4471.1,0.40254]
[1756409818006,0.4895,4471.2,4471.1,0.63154]
[1756409818207,0.4895,4471.2,4471.1,0.79734]
[1756409818807,0.4895,4471.2,4471.1,0.90094]
[1756409820402,3.9948492,4476.1,4471.6,0.6719]
[1756409820403,0.4895,4471.7,4471.6,0.6719]
[1756409820612,3.2078,4472.6,4471.6,0.6719]
[1756409820613,0.1953,4472.1,4472.0,0.67186]
[1756409820905,0.1953,4472.1,4472.0,0.90086]
[1756409821107,0.4895,4472.1,4472.0,0.90086]
[1756409821410,0.1953,4471.3,4471.2,0.1658]
[1756409821711,0.89197,4471.9,4471.8,0.40248]
[1756409821905,0.89197,4471.9,4471.8,0.67188]
[1756409822105,0.89197,4471.9,4471.8,0.2694]
[1756409822810,0.89197,4471.9,4471.7,0.229]
[1756409822811,0.40248,4471.8,4471.7,0.229]
[1756409823002,0.89198,4471.8,4471.7,0.229]
[1756409824411,0.89198,4471.8,4471.7,0.4984]
[1756409825511,0.2942,4471.8,4471.7,0.90089]
[1756409826613,0.69668,4471.8,4471.7,0.4984]
[1756409826812,0.89198,4471.8,4471.7,0.4984]
[1756409827511,0.69243,4472.5,4472.4,0.40243]
[1756409827703,0.88953,4472.5,4472.4,0.4963]
[1756409827907,0.88953,4472.5,4472.4,0.229]
[1756409828415,0.88953,4472.5,4472.4,0.3935]
[1756409829206,0.4871,4472.5,4472.4,0.3935]
[1756409829409,0.4871,4472.5,4472.4,0.4963]
[1756409830409,0.4871,4472.5,4472.4,0.3935]
[1756409831016,0.4871,4472.5,4472.4,0.4963]
[1756409831715,0.4871,4472.5,4472.4,0.3935]
[1756409832112,0.4871,4472.5,4472.4,0.4973]
[1756409832413,0.4871,4472.9,4472.8,0.56839]
[1756409832612,0.88948,4472.9,4472.8,0.4988]
[1756409832811,0.88948,4472.9,4472.8,0.229]
[1756409833211,0.88948,4472.9,4472.8,0.63139]
[1756409833514,0.29,4473.9,4473.3,0.56835]
[1756409833713,3.6949,4474.5,4474.4,0.67205]
[1756409834017,0.1971,4474.1,4474.0,0.2698]
[1756409834213,0.4871,4474.1,4474.0,0.229]
[1756409835618,3.2078,4474.8,4474.0,0.4988]
[1756409835619,0.29,4474.5,4474.0,0.4988]
[1756409835816,0.4871,4474.3,4474.2,0.67206]
[1756409836011,0.4871,4474.3,4474.2,0.2698]
[1756409836208,0.1971,4474.1,4474.0,3.83908]
[1756409836411,0.4871,4474.1,4474.0,3.4368]
[1756409836615,0.40228,4474.0,4473.7,0.1038]
[1756409836813,0.4871,4473.8,4473.7,0.67211]
[1756409837007,0.4871,4473.8,4473.7,0.90111]
[1756409837213,0.1971,4473.6,4473.5,3.2078]
[1756409837415,0.4871,4473.6,4473.5,3.4368]
[1756409837708,0.88942,4473.6,4473.5,0.229]
[1756409838112,0.4871,4473.0,4472.9,3.3738]
[1756409838315,0.4871,4473.0,4472.9,3.6028]
[1756409838919,0.4871,4473.0,4472.9,0.4988]
[1756409839220,0.4871,4473.0,4472.9,0.395]
[1756409839412,0.4871,4472.9,4472.8,32.208]
[1756409839613,0.4871,4472.9,4472.8,32.437]
[1756409839814,0.4871,4472.9,4472.8,32.5408]
[1756409840014,0.88942,4473.6,4473.5,0.2698]
[1756409840214,0.88942,4473.6,4473.5,0.395]
[1756409840514,0.88942,4473.6,4473.5,0.4988]
[1756409841014,0.1971,4473.0,4472.9,0.2698]
[1756409841218,0.4871,4473.0,4472.9,0.4988]
[1756409841615,0.4871,4473.0,4471.6,1.18294933]
[1756409841616,1.00598,4472.9,4472.3,3.2078]
[1756409841812,0.88953,4472.4,4472.3,3.2078]
[1756409842011,0.88953,4472.4,4472.3,3.4368]
[1756409842320,0.4871,4472.4,4472.3,3.6028]
[1756409842620,0.4871,4472.4,4472.3,3.7066]
[1756409845523,0.4871,4472.4,4472.3,3.4776]
[1756409845719,0.4871,4472.4,4472.3,3.7066]
[1756409846115,0.4871,4472.4,4472.3,3.4776]
[1756409846420,0.4871,4472.4,4472.3,3.7066]
[1756409848428,0.4871,4472.4,4472.3,0.395]
[1756409849322,0.88953,4472.4,4472.3,0.395]
[1756409850223,0.88953,4472.4,4472.3,0.166]
[1756409850429,0.88953,4472.4,4472.3,0.395]
[1756409852132,0.88953,4472.4,4472.3,0.229]
[1756409852636,1.0061,4472.3,4471.8,3.2078]
[1756409852838,1.0061,4472.3,4471.8,3.3738]
[1756409852839,0.88957,4471.9,4471.8,3.3738]
[1756409853140,0.88957,4471.9,4471.8,3.4368]
[1756409853335,0.88957,4471.9,4471.5,0.1038]
[1756409853336,0.59962,4471.4,4471.3,35.4098]
[1756409853543,0.88962,4471.4,4471.3,35.6388]
[1756409853743,0.88962,4471.4,4471.3,32.431]
[1756409854338,0.40254,4471.2,4471.1,0.2698]
[1756409854541,0.88964,4471.2,4471.1,0.4988]
[1756409854841,0.88964,4471.2,4471.1,0.395]
[1756409857540,0.88964,4471.2,4471.1,0.4988]
[1756409858338,0.481,4471.7,4471.6,0.2699]
[1756409858644,0.88349,4471.7,4471.6,0.3951]
[1756409858845,0.88349,4471.7,4471.6,0.229]
[1756409859044,0.88349,4471.7,4471.6,0.3951]
[1756409859343,0.88349,4471.7,4471.6,0.4989]
[1756409863245,0.88349,4471.7,4471.6,0.229]
[1756409863441,0.59653,4471.3,4471.2,0.1038]
[1756409863741,0.481,4471.1,4471.0,0.1661]
[1756409863945,0.88354,4471.1,4471.0,0.90145]
[1756409864245,0.481,4471.1,4471.0,0.90145]
[1756409864442,0.481,4471.3,4471.2,0.67243]
[1756409865044,0.88353,4471.3,4471.2,0.67243]
[1756409867843,0.481,4471.3,4471.2,0.67243]
[1756409868151,0.481,4471.6,4471.5,0.2699]
[1756409868347,0.481,4471.6,4471.5,0.4989]
[1756409869342,0.8835,4471.6,4471.5,0.90141]
[1756409869752,0.481,4471.6,4471.5,0.90141]
[1756409870241,0.8835,4471.6,4471.5,0.90141]
[1756409870949,0.287,4471.6,4471.5,0.90141]
[1756409871253,0.6895,4471.6,4471.5,0.90141]
[1756409871452,0.287,4471.6,4471.5,0.90141]
[1756409871846,0.8835,4471.6,4471.5,0.90141]
[1756409872448,0.481,4471.6,4471.5,0.90141]
[1756409872853,3.2078,4472.5,4472.4,0.1661]
[1756409873045,0.481,4472.7,4472.6,0.2699]
[1756409873246,0.481,4472.5,4472.4,0.3951]
[1756409873652,0.481,4472.5,4472.4,0.4989]
[1756409875252,0.287,4472.0,4471.9,3.2078]
[1756409875551,1.0061,4472.3,4471.4,35.4188]
[1756409875851,0.287,4471.5,4471.4,35.4188]
[1756409876354,0.287,4471.5,4471.4,35.6478]
[1756409876852,0.287,4471.5,4471.4,35.7516]
[1756409877953,0.59647,4472.0,4471.9,0.1661]
[1756409878158,0.88347,4472.0,4471.9,0.4989]
[1756409878853,3.2078,4472.6,4471.9,0.4989]
[1756409879058,0.481,4472.3,4472.2,0.2699]
[1756409879259,0.481,4472.3,4472.2,0.4989]
[1756409879647,0.481,4472.3,4472.2,0.3951]
[1756409880053,0.481,4472.3,4472.2,0.229]
[1756409880653,0.481,4472.3,4472.2,0.4989]
[1756409880847,0.40243,4472.4,4472.2,0.4989]
[1756409880848,0.40243,4472.4,4472.3,0.1038]
[1756409881049,0.40243,4472.4,4472.3,0.2699]
[1756409881248,0.88343,4472.4,4472.3,0.2699]
[1756409881650,0.287,4473.0,4472.8,0.1661]
[1756409881850,0.287,4473.0,4472.9,0.4989]
[1756409882056,0.287,4473.3,4473.0,0.1038]
[1756409882258,0.287,4473.3,4473.2,0.2699]
[1756409882760,0.481,4473.3,4473.2,0.1661]
[1756409883564,0.481,4473.3,4473.2,0.2699]
[1756409884354,0.481,4473.3,4473.2,0.1661]
[1756409884560,0.59636,4473.1,4473.0,0.1038]
[1756409884755,0.88336,4473.1,4473.0,0.2699]
[1756409884960,0.481,4473.1,4473.0,0.2699]
[1756409886566,0.287,4473.1,4473.0,0.2699]
[1756409887064,4.21351,4474.1,4473.0,0.2699]
[1756409887065,0.3128,4473.7,4473.6,0.2712]
[1756409887362,0.5205,4473.7,4473.6,0.4992]
[1756409887562,0.5205,4473.7,4473.6,0.3949]
[1756409887762,0.5205,4473.7,4473.6,0.228]
[1756409889764,0.5205,4473.7,4473.6,0.4992]
[1756409890161,0.92281,4473.7,4473.6,0.228]
[1756409891364,0.92281,4473.7,4473.6,0.4992]
[1756409891665,0.92281,4473.7,4473.6,0.3949]
[1756409891958,1.00568,4474.2,4473.6,0.3949]
[1756409891959,0.60999,4474.0,4473.9,0.1669]
[1756409892165,0.92279,4474.0,4473.9,0.4985]
[1756409892362,0.2077,4473.5,4473.4,3.61013]
[1756409892557,0.5205,4473.5,4473.4,4.10753]
[1756409892764,0.5205,4473.5,4473.4,4.33107]
[1756409893363,0.5205,4473.5,4473.4,4.10753]
[1756409894165,0.92283,4473.5,4473.4,3.4772]
[1756409894366,0.92283,4473.5,4473.4,3.2078]
[1756409894565,0.92283,4473.5,4473.4,3.4358]
[1756409894764,0.92283,4473.5,4473.4,4.00394]
[1756409895064,0.3128,4473.5,4473.4,4.10754]
[1756409895466,0.5205,4473.5,4473.4,4.10754]
[1756409895669,0.92283,4473.5,4473.4,4.10754]
[1756409896062,0.5205,4473.5,4473.4,4.10754]
[1756409897169,0.92283,4473.5,4473.4,3.4772]
[1756409897368,0.92283,4473.5,4473.4,3.4358]
[1756409897674,0.92283,4473.5,4473.4,4.10754]
[1756409898269,0.92283,4473.5,4473.4,3.7052]
[1756409898769,0.92283,4473.5,4473.4,3.4772]
[1756409898973,0.92283,4473.5,4473.4,3.6016]
[1756409899463,0.92283,4473.5,4473.4,4.10754]
[1756409901370,0.92283,4473.5,4473.4,3.4358]
[1756409902463,0.92283,4473.5,4472.8,3.2078]
[1756409902464,1.0059,4473.2,4472.8,3.2078]
[1756409902664,0.40243,4472.4,4472.3,3.3114]
[1756409902864,0.92293,4472.4,4472.3,3.7052]
[1756409903765,0.92293,4472.4,4472.3,3.6016]
[1756409903965,0.92293,4472.4,4472.3,3.4358]
[1756409906668,0.92293,4472.4,4472.3,3.2078]
[1756409906863,0.92293,4472.4,4472.3,3.4358]
[1756409907264,0.92293,4472.4,4472.3,3.6016]
[1756409907665,0.92293,4472.4,4472.3,3.7052]
[1756409909064,3.2078,4473.1,4472.3,3.7052]
[1756409909266,3.2078,4473.6,4473.4,0.40233]
[1756409909578,0.40231,4473.8,4473.7,0.1658]
[1756409909771,0.71511,4473.8,4473.7,0.4974]
[1756409910477,0.92281,4473.8,4473.7,0.4974]
[1756409910666,0.5205,4473.1,4473.0,0.2694]
[1756409910975,0.5205,4473.1,4473.0,0.89977]
[1756409911768,0.3128,4473.4,4473.2,0.67175]
[1756409911972,0.3128,4473.4,4473.3,0.4974]
[1756409912769,0.5205,4473.4,4473.3,0.4974]
[1756409913170,0.5205,4473.4,4473.3,3.7052]
[1756409913771,0.5205,4473.4,4473.3,0.4974]
[1756409913973,0.5205,4473.4,4473.3,3.7052]
[1756409914278,0.3128,4473.4,4473.3,3.7052]
[1756409914575,0.92278,4474.0,4473.9,0.2694]
[1756409914774,0.92278,4474.0,4473.9,0.4974]
[1756409915176,0.92278,4474.0,4473.9,0.228]
[1756409915780,0.92282,4473.6,4473.5,0.2694]
[1756409915972,0.92282,4473.6,4473.5,0.4974]
[1756409916382,0.90528,4472.9,4472.8,3.2078]
[1756409916693,0.90528,4472.9,4472.8,3.4358]
[1756409917175,0.90528,4472.9,4472.8,3.6011]
[1756409917375,0.90528,4472.9,4472.8,3.7044]
[1756409920769,0.5029,4472.9,4472.8,3.7044]
[1756409920969,0.90524,4473.4,4473.3,0.1653]
[1756409921169,0.90524,4473.4,4473.3,0.3933]
[1756409921979,0.90524,4473.4,4473.3,0.228]
[1756409922575,0.90533,4472.4,4472.3,3.4764]
[1756409922777,0.90533,4472.4,4472.3,3.7044]
[1756409923077,0.90533,4472.4,4472.3,3.2078]
[1756409923281,0.40251,4471.5,4471.4,32.3143]
[1756409923476,0.69821,4471.5,4471.4,32.3143]
[1756409923669,0.69821,4471.5,4471.4,32.5423]
[1756409924374,0.60973,4471.3,4471.2,3.2078]
[1756409924581,0.90547,4470.8,4470.7,3.2078]
[1756409924779,0.90547,4470.8,4470.7,3.7044]
[1756409924978,0.90547,4470.8,4470.7,3.4358]
[1756409925477,0.90552,4470.3,4470.2,3.4764]
[1756409925779,0.90552,4470.3,4470.2,3.7044]
[1756409927172,0.90552,4470.3,4470.2,3.4358]
[1756409927669,0.90552,4470.3,4470.2,3.6011]
[1756409927873,0.90552,4470.3,4470.2,3.7044]
[1756409928276,0.90552,4470.3,4470.2,3.6011]
[1756409928678,0.90552,4470.3,4470.2,0.4966]
[1756409929278,0.5029,4470.7,4470.6,0.1653]
[1756409929483,0.5029,4470.7,4470.6,0.4966]
[1756409929683,0.90548,4470.7,4470.6,0.228]
[1756409930183,0.90548,4470.7,4470.6,0.4966]
[1756409930678,0.60982,4470.4,4470.2,3.2078]
[1756409930878,0.90552,4470.4,4470.3,0.228]
[1756409931986,0.90552,4470.4,4470.3,0.3933]
[1756409932285,0.90557,4469.7,4469.1,3.2078]
[1756409932479,0.90557,4469.7,4469.5,0.228]
[1756409936283,0.40277,4468.6,4468.5,3.3111]
[1756409936484,0.40276,4468.7,4468.6,0.56807]
[1756409936684,0.69846,4468.7,4468.6,0.67137]
[1756409937090,0.2957,4468.7,4468.6,0.67137]
[1756409938287,0.2957,4468.7,4468.6,0.2686]
[1756409939485,0.90564,4468.9,4468.8,0.2686]
[1756409939685,0.90564,4468.9,4468.8,0.4966]
[1756409939886,0.5029,4468.9,4468.8,0.4966]
[1756409940788,0.90564,4468.9,4468.8,0.228]
[1756409941577,0.2072,4468.9,4468.5,3.61058]
[1756409941782,0.90567,4468.6,4468.5,3.4358]
[1756409942491,0.90567,4468.6,4468.5,3.6011]
[1756409942685,0.90567,4468.6,4468.5,3.7044]
[1756409942986,0.40277,4468.6,4468.5,3.7044]
[1756409943188,0.90566,4468.8,4468.7,0.2686]
[1756409943786,0.90567,4468.6,4468.5,3.2078]
[1756409943988,0.90567,4468.6,4468.5,3.4358]
[1756409944792,0.90567,4468.6,4468.5,3.7044]
[1756409945094,0.90567,4468.6,4468.5,3.6011]
[1756409945991,0.90567,4468.6,4468.5,3.7044]
[1756409946988,0.90567,4468.6,4468.5,3.4358]
[1756409950195,0.4871,4467.9,4467.8,0.1041]
[1756409950391,0.60613,4467.9,4467.8,0.228]
[1756409950590,0.60613,4467.9,4467.8,0.4986]
[1756409950995,0.88993,4467.9,4467.8,0.4986]
[1756409952694,0.88993,4467.9,4467.3,3.2078]
[1756409952695,0.2033,4467.4,4467.3,3.3741]
[1756409952888,0.2838,4467.8,4467.4,0.104]
[1756409953088,0.40288,4467.4,4467.3,3.94269]
[1756409953294,0.40288,4467.4,4467.3,4.10899]
[1756409953891,0.40287,4467.5,4467.4,0.104]
[1756409954196,0.40287,4467.5,4467.4,0.2703]
[1756409954398,0.40287,4467.5,4467.4,0.67318]
[1756409954786,1.00708,4468.0,4467.4,0.56918]
[1756409954996,0.40287,4467.5,4467.4,0.40288]
[1756409955298,0.40287,4467.5,4467.4,0.2703]
[1756409955496,0.68667,4467.5,4467.4,0.2703]
[1756409955896,0.40288,4467.4,4467.3,3.2078]
[1756409956098,0.89001,4467.0,4466.9,0.2703]
[1756409956296,0.89001,4467.0,4466.9,0.228]
[1756409956493,0.89001,4467.0,4466.9,0.3943]
[1756409957101,0.89001,4467.0,4466.9,0.4983]
[1756409958401,0.4871,4467.0,4466.9,0.90122]
[1756409959002,0.89001,4467.0,4466.9,0.90122]
[1756409959403,0.4871,4467.0,4466.9,0.90122]
[1756409960200,0.89001,4467.0,4466.9,0.4983]
[1756409961202,0.89001,4467.0,4466.9,0.228]
[1756409961799,0.89001,4467.0,4466.9,0.63092]
[1756409962198,0.89001,4467.0,4466.9,0.90122]
[1756409962798,0.4871,4467.0,4466.9,0.90122]
[1756409964202,0.4871,4467.0,4466.9,0.79722]
[1756409964799,0.89001,4467.0,4466.9,0.79722]
[1756409965103,0.89001,4467.0,4466.9,0.228]
[1756409965305,0.89001,4467.0,4466.9,0.63092]
[1756409965706,0.4871,4467.0,4466.9,0.63092]
[1756409966597,0.4871,4467.0,4466.9,0.79722]
[1756409966798,0.4871,4467.0,4466.9,0.90122]
[1756409967106,0.89001,4467.0,4466.9,0.79722]
[1756409967401,0.4871,4467.0,4466.9,0.79722]
[1756409967593,0.4871,4467.0,4466.9,0.90122]
[1756409968400,0.4871,4467.0,4466.4,1.00742]
[1756409968401,0.4871,4466.4,4466.3,3.2078]
[1756409968601,0.4871,4466.4,4465.1,40.8]
[1756409968602,0.68682,4465.8,4465.3,3.2078]
[1756409968799,0.2033,4466.0,4465.9,0.203]
[1756409969099,0.2033,4465.4,4465.3,3.4108]
[1756409969296,0.4871,4465.4,4465.3,0.27655633]
[1756409969496,0.2033,4465.2,4465.1,0.203]
[1756409969700,0.4871,4465.2,4465.1,0.47957288]
[1756409970005,0.4871,4465.2,4465.1,0.79067288]
[1756409970203,0.4871,4465.2,4465.1,0.76301339]
[1756409970402,0.2838,4465.9,4465.1,0.45191339]
[1756409970602,0.2838,4465.9,4465.7,0.203]
[1756409970603,0.2033,4465.8,4465.7,0.203]
[1756409970802,0.2033,4465.8,4465.7,0.432]
[1756409971305,0.89012,4465.8,4465.7,0.27109921]
[1756409971501,0.89012,4465.8,4465.7,0.04209921]
[1756409971806,4.89012,4465.8,4465.7,0.04209921]
[1756409972101,0.4871,4465.5,4465.4,0.60605]
[1756409972306,0.4871,4465.5,4465.4,0.7431]
[1756409973103,0.4871,4465.5,4465.4,0.229]
[1756409973309,0.4871,4465.5,4465.4,0.24503]
[1756409973610,0.4871,4465.5,4465.4,0.44803]
[1756409974002,0.4871,4465.5,4465.4,0.75913]
[1756409974203,0.4871,4465.5,4465.4,0.78131856]
[1756409974804,0.2033,4465.5,4465.4,0.78131856]
[1756409975310,0.2033,4465.5,4465.4,0.80351447]
[1756409975706,0.4871,4465.5,4465.4,0.80351447]
[1756409976204,0.2033,4465.5,4465.4,0.81953712]
[1756409976409,0.89271,4465.9,4465.8,0.4883]
[1756409976607,0.197,4465.9,4465.8,0.7173]
[1756409977010,0.4897,4465.9,4465.8,0.7173]
[1756409977307,0.59998,4466.3,4466.2,0.1971]
[1756409977501,0.89268,4466.3,4466.2,0.4883]
[1756409978310,1.00722,4467.4,4466.2,0.4883]
[1756409978311,0.4897,4466.7,4466.6,0.1971]
[1756409978512,0.40292,4466.9,4466.8,0.1971]
[1756409978707,0.40292,4466.9,4466.6,0.229]
[1756409978708,0.4897,4467.5,4467.4,0.4883]
[1756409978909,0.4897,4467.5,4467.4,0.7173]
[1756409979306,0.197,4467.5,4467.4,0.8305614]
[1756409979508,3.80761,4468.2,4468.1,0.1971]
[1756409979713,0.197,4468.2,4468.1,0.7173]
[1756409979907,0.197,4468.8,4468.7,0.1971]
[1756409980113,0.89245,4468.8,4468.7,0.4883]
[1756409980714,0.89245,4468.8,4468.7,0.1971]
[1756409980915,0.89245,4468.8,4468.7,0.35474714]
[1756409981416,0.4897,4468.8,4468.7,0.64594714]
[1756409982112,4.71348,4468.8,4468.7,0.17976142]
[1756409982315,4.4897,4468.8,4468.7,0.17976142]
[1756409982711,0.4897,4468.8,4468.7,0.17976142]
[1756409983217,4.2927,4468.8,4468.3,0.173]
[1756409983412,0.89245,4468.8,4468.7,0.20187406]
[1756409984313,0.66852724,4468.0,4467.9,0.4883]
[1756409984514,0.4897,4468.0,4467.9,0.6873]
[1756409985317,0.4897,4468.0,4467.9,0.70743179]
[1756409985818,0.197,4468.0,4467.9,0.50843179]
[1756409986215,0.197,4468.0,4467.9,0.73743179]
[1756409987420,0.4897,4468.0,4467.9,0.75955049]
[1756409988115,0.40278,4468.5,4468.3,0.1971]
[1756409988320,0.40278,4468.5,4468.1,0.40281]
[1756409988321,0.40278,4468.5,4468.4,0.7173]
[1756409988520,0.40278,4468.5,4468.4,0.76637219]
[1756409991925,0.40275,4468.8,4468.7,0.4883]
[1756409992117,0.40274,4469.0,4468.9,0.1971]
[1756409992511,3.2078,4469.4,4469.1,0.1971]
[1756409992814,10.06227,4471.8,4469.0,0.2912]
[1756409992815,3.2078,4470.2,4470.1,0.4883]
[1756409993114,3.80737,4470.8,4470.7,0.4883]
[1756409993314,3.80737,4470.8,4470.7,0.7183]
[1756409993619,3.61037,4470.8,4470.7,0.76737219]
[1756409993821,3.80737,4470.8,4470.7,0.76737219]
[1756409994015,4.10007,4470.8,4470.7,0.76737219]
[1756409994414,8.10007,4470.8,4470.7,0.04907219]
[1756409995016,4.10007,4470.8,4470.7,0.04907219]